bitfinex-derivatives/quotes_BTCF0:USTF0_20251118
["timestamp","ask_amount","ask_price","bid_price","bid_amount"]
[1763488942889,0.00016054,93416.0,93415.0,0.1520469]
[1763488944287,0.12851634,93416.0,93415.0,0.1520469]
[1763488945092,0.15134634,93416.0,93415.0,0.04493]
[1763488945484,0.04407,93415.0,93414.0,0.3608]
[1763488947190,0.04407,93415.0,93414.0,0.405]
[1763488947390,0.04407,93415.0,93414.0,0.3608]
[1763488947795,0.04509,93411.0,93410.0,0.15183033]
[1763488948196,0.1522115,93411.0,93410.0,0.15183033]
[1763488948690,0.02267054,93416.0,93415.0,0.1496269]
[1763488949594,0.04525054,93416.0,93415.0,0.04251]
[1763488949790,0.1522069,93415.0,93414.0,0.3608]
[1763488950189,0.00016054,93416.0,93415.0,0.1496269]
[1763488951295,0.05862,93440.0,93439.0,0.1495994]
[1763488951488,0.05862,93440.0,93439.0,0.5103994]
[1763488952792,0.05962,93440.0,93439.0,0.5103994]
[1763488952992,0.04609,93440.0,93439.0,0.5103994]
[1763488953191,0.04709,93440.0,93439.0,0.5103994]
[1763488953700,0.06055,93440.0,93439.0,0.40331]
[1763488954091,0.06055,93440.0,93439.0,0.5103994]
[1763488954299,0.04709,93440.0,93439.0,0.40331]
[1763488954497,0.06055,93440.0,93439.0,0.40331]
[1763488956202,0.06055,93440.0,93439.0,0.4678894]
[1763488956503,0.06055,93440.0,93439.0,0.38208]
[1763488957193,0.1070894,93439.0,93438.0,0.3608]
[1763488957393,0.1521794,93439.0,93438.0,0.3608]
[1763488958000,0.1521886,93431.0,93430.0,0.00235857]
[1763488959106,0.1541886,93431.0,93430.0,0.04486857]
[1763488959603,0.1541886,93431.0,93430.0,0.00235857]
[1763488960306,0.1541886,93431.0,93430.0,0.00016054]
[1763488961903,0.1541886,93431.0,93420.0,0.38208]
[1763488961904,0.1522001,93421.0,93420.0,0.38208]
[1763488962102,0.1522001,93421.0,93420.0,0.3608]
[1763488962302,0.1522001,93421.0,93415.0,0.07892373]
[1763488962303,0.1522058,93416.0,93415.0,0.07892373]
[1763488962499,0.1656715,93411.0,93409.0,0.05764373]
[1763488962703,0.1522138,93409.0,93408.0,0.05764373]
[1763488963013,0.1522161,93407.0,93406.0,0.00026765]
[1763488963502,0.1522161,93407.0,93406.0,0.02154765]
[1763488964311,0.1522161,93407.0,93406.0,0.00026765]
[1763488964511,0.04509,93407.0,93406.0,0.04277765]
[1763488965812,0.04509,93407.0,93406.0,0.00026765]
[1763488969014,0.04509,93407.0,93406.0,0.04277765]
[1763488969217,0.29473,93411.0,93410.0,0.15183073]
[1763488969519,0.31731,93411.0,93410.0,0.51263073]
[1763488971308,0.31731,93411.0,93410.0,0.40550803]
[1763488972603,0.02267054,93418.0,93417.0,0.1496247]
[1763488973205,0.04525054,93418.0,93417.0,0.1496247]
[1763488974414,0.04525054,93418.0,93417.0,0.02128]
[1763488974615,0.04525054,93418.0,93410.0,0.3608]
[1763488974616,0.1522115,93413.0,93412.0,0.04251]
[1763488975513,0.05855,93411.0,93410.0,0.36299803]
[1763488975922,0.05855,93411.0,93410.0,0.40550803]
[1763488976415,0.05855,93411.0,93410.0,0.51263073]
[1763488977320,0.05842,93411.0,93410.0,0.51263073]
[1763488979208,0.05842,93411.0,93410.0,0.36299803]
[1763488979718,0.04441,93407.0,93406.0,0.00026765]
[1763488980220,0.1515361,93407.0,93406.0,0.00026765]
[1763488980821,0.4102161,93407.0,93406.0,0.00026765]
[1763488981224,0.04441,93407.0,93406.0,0.04416765]
[1763488981419,0.3823,93409.0,93408.0,0.0439]
[1763488981615,0.40521,93409.0,93408.0,0.0439]
[1763488982412,0.00016054,93418.0,93417.0,0.1510147]
[1763488982618,0.0215,93435.0,93434.0,0.1509952]
[1763488982812,0.31655281,93445.0,93437.0,0.1509917]
[1763488983014,0.31655281,93445.0,93444.0,0.1509837]
[1763488983015,0.36096281,93445.0,93444.0,0.1509837]
[1763488983212,0.38512653,93445.0,93444.0,0.1509837]
[1763488983623,0.05787281,93445.0,93444.0,0.1509837]
[1763488983821,0.00016024,93454.0,93444.0,0.1509837]
[1763488983822,0.04457024,93454.0,93453.0,0.1509734]
[1763488984030,0.02432452,93454.0,93453.0,0.5117734]
[1763488984420,0.00016024,93454.0,93453.0,0.5117734]
[1763488985529,0.00016024,93454.0,93453.0,0.4047]
[1763488985932,0.02166024,93454.0,93453.0,0.4047]
[1763488986144,0.04457024,93454.0,93453.0,0.4047]
[1763488987334,0.06874708,93454.0,93453.0,0.4047]
[1763488987836,0.06874708,93454.0,93453.0,0.0439]
[1763488988036,0.06874708,93454.0,93453.0,0.02148]
[1763488988238,0.04457024,93454.0,93453.0,0.02148]
[1763488988637,0.04457024,93454.0,93453.0,0.0439]
[1763488989939,0.02166024,93454.0,93453.0,0.0439]
[1763488990235,0.00016024,93454.0,93453.0,0.0439]
[1763488990936,0.00016024,93454.0,93453.0,0.1509734]
[1763488991941,0.05786893,93474.0,93473.0,0.0439]
[1763488992143,0.12646369,93474.0,93473.0,0.02148]
[1763488992332,0.04441,93471.0,93470.0,0.02367803]
[1763488992640,0.05786893,93474.0,93473.0,0.1509505]
[1763488993035,0.05886893,93474.0,93473.0,0.1509505]
[1763488994440,0.05986893,93474.0,93473.0,0.1509505]
[1763488996038,0.10427893,93474.0,93473.0,0.0439]
[1763488996641,0.10427893,93474.0,93470.0,0.00219803]
[1763488996642,0.04441,93471.0,93470.0,0.00219803]
[1763488996840,0.04441,93471.0,93470.0,0.15315193]
[1763488996841,0.0215,93471.0,93470.0,0.15315193]
[1763488997847,0.04541,93471.0,93470.0,0.04609803]
[1763488998145,0.04641,93471.0,93470.0,0.04609803]
[1763488998944,0.0235,93471.0,93470.0,0.04609803]
[1763488999247,0.002,93471.0,93470.0,0.05578803]
[1763489000244,0.05786893,93474.0,93473.0,0.0439]
[1763489000738,0.00026742,93486.0,93485.0,0.1503367]
[1763489000939,0.00026742,93486.0,93485.0,0.5111367]
[1763489001536,0.04301742,93486.0,93485.0,0.5111367]
[1763489001742,0.00026742,93486.0,93485.0,0.5111367]
[1763489003537,0.37413,93510.0,93485.0,0.5111367]
[1763489003538,0.41688,93510.0,93509.0,0.0433]
[1763489004544,0.04275,93501.0,93500.0,0.02180045]
[1763489004747,0.04275,93501.0,93500.0,0.04565848]
[1763489004939,0.02123,93501.0,93500.0,0.04565848]
[1763489005138,0.1650881,93510.0,93509.0,0.02164]
[1763489005334,0.04275,93508.0,93507.0,0.1070113]
[1763489005844,0.04275,93508.0,93507.0,0.02164]
[1763489006041,0.04275,93503.0,93502.0,0.28016]
[1763489006242,0.1497661,93503.0,93502.0,0.0433]
[1763489007142,0.04375,93501.0,93500.0,0.00235848]
[1763489007340,0.04375,93501.0,93500.0,0.04655848]
[1763489007845,0.04658,93508.0,93507.0,0.04531]
[1763489008043,0.04658,93508.0,93507.0,0.1523216]
[1763489008239,0.001,93508.0,93507.0,0.5131216]
[1763489008456,0.05786864,93538.0,93525.0,0.152301]
[1763489008744,0.02287,93539.0,93538.0,0.04531]
[1763489008944,0.04558,93539.0,93538.0,0.30395]
[1763489009742,0.04558,93539.0,93538.0,0.40611]
[1763489010550,0.02287,93539.0,93538.0,0.40611]
[1763489010857,0.01351,93550.0,93539.0,0.1069747]
[1763489011045,0.01351,93550.0,93540.0,0.00219803]
[1763489011345,0.02287,93547.0,93546.0,0.152276]
[1763489011550,0.02287,93547.0,93546.0,0.04531]
[1763489011745,0.04558,93547.0,93538.0,0.3608]
[1763489011947,0.04558,93539.0,93538.0,0.38355]
[1763489012144,0.04558,93539.0,93538.0,0.3608]
[1763489012347,0.04558,93535.0,93534.0,0.3608]
[1763489012854,0.04558,93531.0,93530.0,0.00219803]
[1763489013951,0.04558,93531.0,93530.0,0.04750803]
[1763489014252,0.04558,93539.0,93538.0,0.04531]
[1763489014550,0.04558,93530.0,93529.0,0.36096036]
[1763489014752,0.04558,93530.0,93529.0,0.00016036]
[1763489016448,0.04558,93530.0,93529.0,0.04547036]
[1763489017043,0.04558,93530.0,93529.0,0.40627036]
[1763489017650,0.04558,93530.0,93529.0,0.36096036]
[1763489018148,0.04558,93530.0,93529.0,0.00016036]
[1763489018546,0.07034438,93530.0,93529.0,0.00016036]
[1763489019248,0.04558,93530.0,93529.0,0.00016036]
[1763489020147,0.04558,93530.0,93529.0,0.02291036]
[1763489020349,0.04558,93530.0,93529.0,0.04547036]
[1763489020650,0.04558,93530.0,93529.0,0.00016036]
[1763489023645,0.04558,93513.0,93512.0,0.02862314]
[1763489023852,0.04558,93513.0,93510.0,0.03082117]
[1763489024163,0.02287,93511.0,93510.0,0.04750803]
[1763489024459,0.04558,93511.0,93510.0,0.04750803]
[1763489024854,0.04458,93511.0,93510.0,0.04750803]
[1763489025162,0.02187,93511.0,93510.0,0.04750803]
[1763489025965,0.04458,93511.0,93510.0,0.00219803]
[1763489026257,0.04458,93511.0,93510.0,0.03082117]
[1763489026661,0.04458,93511.0,93510.0,0.07613117]
[1763489027159,0.04458,93511.0,93510.0,0.08567222]
[1763489028152,0.00015977,93520.0,93519.0,0.1523077]
[1763489028353,0.16624637,93520.0,93519.0,0.18105661]
[1763489028656,0.05924977,93520.0,93519.0,0.1523077]
[1763489029357,0.06024977,93520.0,93519.0,0.04531]
[1763489029552,0.1525777,93519.0,93518.0,0.3608]
[1763489029753,0.04558,93514.0,93513.0,0.04531]
[1763489029951,0.04558,93514.0,93513.0,0.07406727]
[1763489030155,0.04558,93511.0,93510.0,0.00219803]
[1763489031053,0.05909,93511.0,93510.0,0.00219803]
[1763489032461,0.152588,93510.0,93509.0,0.03833188]
[1763489033254,0.152588,93510.0,93508.0,0.03833188]
[1763489033562,0.04558,93506.0,93505.0,0.18700988]
[1763489033964,0.04558,93506.0,93505.0,0.20956988]
[1763489034164,0.04558,93506.0,93505.0,0.10255628]
[1763489035068,0.02287,93506.0,93505.0,0.04531]
[1763489035366,0.3608,93516.0,93514.0,0.04531]
[1763489035367,0.1525828,93515.0,93514.0,0.04531]
[1763489035573,0.04558,93515.0,93514.0,0.1523135]
[1763489036563,0.04658,93515.0,93514.0,0.1523135]
[1763489037166,0.04658,93515.0,93514.0,0.19071793]
[1763489037959,0.001,93515.0,93514.0,0.1523135]
[1763489038163,0.04494,93515.0,93514.0,0.1523135]
[1763489038766,0.04494,93515.0,93514.0,0.20992015]
[1763489039270,0.02294,93515.0,93514.0,0.20997397]
[1763489039865,0.04494,93515.0,93514.0,0.20997397]
[1763489040572,0.04494,93515.0,93514.0,0.1523135]
[1763489040868,0.02294,93515.0,93514.0,0.1523135]
[1763489041072,0.001,93515.0,93514.0,0.1523135]
[1763489041270,0.04494,93515.0,93514.0,0.1523135]
[1763489041574,0.04494,93515.0,93514.0,0.10297033]
[1763489041760,0.001,93515.0,93514.0,0.10297033]
[1763489041961,0.001,93515.0,93514.0,0.04531]
[1763489042962,0.001,93515.0,93514.0,0.30371]
[1763489043561,0.01351,93540.0,93539.0,0.04534]
[1763489043768,0.05745,93540.0,93539.0,0.04534]
[1763489044869,0.05945,93540.0,93539.0,0.04534]
[1763489045060,0.04594,93540.0,93539.0,0.08376302]
[1763489045272,0.002,93540.0,93539.0,0.08376302]
[1763489045474,0.02194,93540.0,93539.0,0.08376302]
[1763489045772,0.04494,93540.0,93539.0,0.04534]
[1763489045972,0.04394,93537.0,93536.0,0.08054308]
[1763489046278,0.04394,93537.0,93536.0,0.04534]
[1763489047164,0.001,93540.0,93538.0,0.04534]
[1763489047373,0.001,93540.0,93539.0,0.1523149]
[1763489047571,0.04494,93540.0,93539.0,0.1523149]
[1763489047866,0.04394,93540.0,93539.0,0.1523149]
[1763489048571,0.04494,93540.0,93539.0,0.1523149]
[1763489048770,0.04494,93540.0,93539.0,0.04534]
[1763489049068,0.1509149,93539.0,93538.0,0.03840097]
[1763489049775,0.1509149,93539.0,93534.0,0.3608]
[1763489049776,0.04394,93538.0,93537.0,0.03840097]
[1763489050173,0.1640671,93537.0,93536.0,0.03840097]
[1763489050574,0.1640671,93537.0,93535.0,0.03840097]
[1763489050575,0.04394,93536.0,93535.0,0.03840097]
[1763489050775,0.1201271,93537.0,93530.0,0.16481774]
[1763489050776,0.150924,93531.0,93530.0,0.00235839]
[1763489052269,0.150924,93531.0,93530.0,0.00016036]
[1763489052576,0.1070012,93516.0,93513.0,0.1070041]
[1763489052963,0.1640882,93519.0,93518.0,0.1069989]
[1763489053167,0.02194,93510.0,93509.0,0.08374097]
[1763489053467,0.05709,93510.0,93509.0,0.1523492]
[1763489053870,0.05609,93510.0,93509.0,0.1523492]
[1763489054068,0.05609,93510.0,93509.0,0.04534]
[1763489054569,0.05609,93510.0,93509.0,0.04734]
[1763489057378,0.05609,93510.0,93509.0,0.002]
[1763489059068,0.37411036,93519.0,93518.0,0.04534]
[1763489059069,0.16424846,93519.0,93518.0,0.04534]
[1763489059271,0.16424846,93519.0,93518.0,0.02287]
[1763489060075,0.16424846,93519.0,93518.0,0.04534]
[1763489060271,0.16424846,93519.0,93514.0,0.1298427]
[1763489060272,0.1505236,93515.0,93514.0,0.1298427]
[1763489060473,0.04352,93515.0,93514.0,0.1515727]
[1763489062574,0.00016036,93519.0,93518.0,0.1515689]
[1763489062774,0.02130036,93519.0,93518.0,0.5123689]
[1763489062982,0.00016036,93519.0,93518.0,0.5123689]
[1763489063278,0.02130036,93519.0,93518.0,0.5123689]
[1763489065186,0.00016036,93519.0,93518.0,0.5123689]
[1763489065379,0.02130036,93519.0,93518.0,0.5123689]
[1763489065783,0.02130036,93519.0,93518.0,0.55076202]
[1763489066386,0.04368036,93519.0,93518.0,0.55076202]
[1763489066688,0.00016036,93519.0,93518.0,0.55076202]
[1763489066988,0.04368036,93519.0,93518.0,0.40537]
[1763489068185,0.00016036,93519.0,93518.0,0.40537]
[1763489069479,0.04435036,93519.0,93518.0,0.40537]
[1763489070488,0.04435036,93519.0,93518.0,0.44378047]
[1763489071383,0.04435036,93519.0,93518.0,0.42205047]
[1763489071880,0.04435036,93519.0,93518.0,0.38364]
[1763489072077,0.1511889,93518.0,93517.0,0.4677996]
[1763489072483,0.1511889,93518.0,93517.0,0.4901996]
[1763489073092,0.1511889,93518.0,93517.0,0.5130096]
[1763489073594,0.1511889,93518.0,93517.0,0.5140096]
[1763489073784,0.04419,93518.0,93517.0,0.5140096]
[1763489074689,0.04435036,93519.0,93518.0,0.04521]
[1763489074893,0.02300036,93519.0,93518.0,0.04521]
[1763489075295,0.04435036,93519.0,93518.0,0.04521]
[1763489075590,0.01315,93537.0,93520.0,0.00219803]
[1763489075792,0.02284,93537.0,93536.0,0.1521883]
[1763489076292,0.05694,93537.0,93536.0,0.1521883]
[1763489076882,0.1069586,93554.0,93536.0,0.1521883]
[1763489076883,0.02284,93551.0,93550.0,0.1521723]
[1763489077086,0.04419,93551.0,93550.0,0.04740803]
[1763489077282,0.1511512,93551.0,93550.0,0.04740803]
[1763489077493,0.1511512,93551.0,93550.0,0.00219803]
[1763489078498,0.1521512,93551.0,93550.0,0.04740803]
[1763489078792,0.04519,93551.0,93550.0,0.04740803]
[1763489079591,0.04619,93551.0,93550.0,0.04740803]
[1763489080095,0.04619,93551.0,93550.0,0.00219803]
[1763489080791,0.04619,93551.0,93550.0,0.04740803]
[1763489081295,0.04619,93551.0,93550.0,0.40820803]
[1763489082091,0.02484,93551.0,93550.0,0.40820803]
[1763489082293,0.04619,93551.0,93550.0,0.40820803]
[1763489083501,0.04619,93551.0,93550.0,0.38539803]
[1763489083704,0.04619,93551.0,93550.0,0.36299803]
[1763489084491,0.04619,93551.0,93550.0,0.40820803]
[1763489084689,0.02484,93551.0,93550.0,0.40820803]
[1763489084892,0.002,93551.0,93550.0,0.40820803]
[1763489086489,0.001,93551.0,93550.0,0.40820803]
[1763489086699,0.002,93551.0,93550.0,0.40820803]
[1763489087098,0.002,93551.0,93550.0,0.66652803]
[1763489087492,0.00167929,93551.0,93550.0,0.66652803]
[1763489088701,0.02451929,93551.0,93550.0,0.40820803]
[1763489088905,0.02451929,93551.0,93550.0,0.66652803]
[1763489089695,0.00167929,93551.0,93550.0,0.66652803]
[1763489091704,0.02310719,93566.0,93565.0,0.1521552]
[1763489091903,0.02310719,93566.0,93565.0,0.5129552]
[1763489093003,0.04445719,93566.0,93565.0,0.5129552]
[1763489093690,0.04445719,93566.0,93565.0,0.40601]
[1763489096508,0.02310719,93566.0,93565.0,0.40601]
[1763489096897,0.00026719,93566.0,93565.0,0.40601]
[1763489097605,0.02310719,93566.0,93565.0,0.40601]
[1763489098209,0.04544719,93566.0,93565.0,0.40601]
[1763489098602,0.00026719,93566.0,93565.0,0.40601]
[1763489100005,0.00026719,93566.0,93565.0,0.76681]
[1763489100212,0.04828616,93576.0,93575.0,0.04497]
[1763489100414,0.07190397,93576.0,93575.0,0.5127037]
[1763489100610,0.04828616,93576.0,93575.0,0.5127037]
[1763489101115,0.5240252,93600.0,93599.0,0.04497]
[1763489101315,0.04357,93599.0,93598.0,0.1069063]
[1763489101527,0.04383708,93606.0,93605.0,0.1518695]
[1763489102013,0.00026708,93606.0,93605.0,0.1518695]
[1763489102213,0.37464,93632.0,93631.0,0.04497]
[1763489102411,0.37464,93632.0,93609.0,0.00798]
[1763489102412,0.04357,93631.0,93630.0,0.00219803]
[1763489102815,0.04357,93631.0,93630.0,0.04716803]
[1763489103121,0.04357,93631.0,93630.0,0.40796803]
[1763489103316,1.5,93636.0,93635.0,0.02251]
[1763489103507,1.5,93636.0,93635.0,0.04497]
[1763489103706,1.5,93636.0,93635.0,0.1518352]
[1763489103914,1.6068641,93636.0,93635.0,0.04497]
[1763489104519,1.5,93636.0,93635.0,0.1518352]
[1763489104712,0.05741,93645.0,93644.0,0.04497]
[1763489104913,0.04357,93645.0,93644.0,0.40577]
[1763489105320,0.04357,93645.0,93644.0,0.512625]
[1763489105825,0.04357,93645.0,93644.0,0.40577]
[1763489106120,0.04457,93645.0,93644.0,0.40577]
[1763489106319,0.04557,93645.0,93644.0,0.40577]
[1763489106825,0.04557,93645.0,93644.0,0.512625]
[1763489107027,0.04557,93645.0,93644.0,0.40577]
[1763489108224,0.04557,93645.0,93644.0,0.66397]
[1763489108725,0.04557,93645.0,93628.0,0.106873]
[1763489108726,0.1068778,93624.0,93623.0,0.3608]
[1763489108918,0.04357,93624.0,93623.0,0.38331]
[1763489109124,0.40637,93645.0,93644.0,0.04497]
[1763489109421,0.1524238,93645.0,93644.0,0.04497]
[1763489109925,0.1504238,93645.0,93644.0,0.04497]
[1763489110322,0.5112238,93645.0,93644.0,0.04497]
[1763489110517,0.5112238,93645.0,93640.0,0.01584803]
[1763489110518,0.1504284,93641.0,93640.0,0.00219803]
[1763489110724,0.02123,93623.0,93622.0,0.04513026]
[1763489110927,0.1504417,93630.0,93629.0,0.04497]
[1763489111129,0.1504455,93626.0,93625.0,0.3608]
[1763489111332,0.1504489,93623.0,93622.0,0.00016026]
[1763489111524,0.1504489,93623.0,93622.0,0.02267026]
[1763489112023,0.04357,93623.0,93622.0,0.02267026]
[1763489112227,0.04357,93623.0,93622.0,0.04513026]
[1763489113435,0.467653,93646.0,93622.0,0.04513026]
[1763489113436,0.02123,93639.0,93630.0,0.01365]
[1763489113628,0.1280907,93639.0,93638.0,0.04497]
[1763489113933,0.1504307,93639.0,93638.0,0.04497]
[1763489114125,0.04357,93639.0,93638.0,0.04497]
[1763489114427,0.3650083,93650.0,93640.0,0.00219803]
[1763489114636,0.30173,93650.0,93649.0,0.04497]
[1763489115022,0.38203,93654.0,93653.0,0.1518147]
[1763489115220,0.40437,93654.0,93653.0,0.02251]
[1763489115420,1.90437,93654.0,93653.0,0.02251]
[1763489116132,1.90537,93654.0,93653.0,0.02251]
[1763489116334,1.90637,93654.0,93653.0,0.02251]
[1763489117637,1.90637,93654.0,93653.0,0.04497]
[1763489118135,0.04357,93645.0,93644.0,0.00016016]
[1763489118336,0.02123,93638.0,93630.0,0.1205203]
[1763489118634,0.04357,93626.0,93625.0,0.04497]
[1763489118834,0.5112364,93634.0,93628.0,0.1068726]
[1763489119030,0.1504421,93629.0,93628.0,0.04497]
[1763489119231,0.3608,93634.0,93620.0,0.01584803]
[1763489119232,0.1281112,93621.0,93620.0,0.05862]
[1763489119531,0.1281112,93621.0,93620.0,0.06081803]
[1763489119532,0.1504512,93621.0,93620.0,0.06081803]
[1763489119734,0.02123,93621.0,93620.0,0.06081803]
[1763489120936,0.1499308,93630.0,93629.0,0.1293821]
[1763489121137,0.0430595,93630.0,93629.0,0.1072542]
[1763489121337,0.0430595,93630.0,93629.0,0.1288942]
[1763489121639,0.1506678,93624.0,93623.0,0.04398]
[1763489122833,0.1506712,93621.0,93620.0,0.00219803]
[1763489123736,0.1506815,93612.0,93611.0,0.04414016]
[1763489123925,0.5114815,93612.0,93611.0,0.00016016]
[1763489124540,0.04379,93612.0,93611.0,0.04414016]
[1763489125530,0.25816,93616.0,93611.0,0.04414016]
[1763489125531,0.28028,93616.0,93615.0,0.1508681]
[1763489125737,0.30195,93616.0,93615.0,0.1508681]
[1763489126137,0.3608,93617.0,93616.0,0.04398]
[1763489127042,0.150673,93620.0,93619.0,0.04398]
[1763489127941,0.04647,93616.0,93615.0,0.04476]
[1763489128142,0.02322,93616.0,93615.0,0.04476]
[1763489128343,0.40727,93625.0,93624.0,0.1506378]
[1763489128839,0.40727,93625.0,93624.0,0.1296078]
[1763489129347,0.43052739,93625.0,93624.0,0.02273]
[1763489130343,0.1533512,93621.0,93620.0,0.00219803]
[1763489130540,0.1533512,93621.0,93611.0,0.00016016]
[1763489130541,0.1533615,93612.0,93611.0,0.00016016]
[1763489131641,0.04647,93612.0,93611.0,0.15081276]
[1763489131842,0.04647,93612.0,93611.0,0.04392016]
[1763489132042,0.04647,93612.0,93611.0,0.02289016]
[1763489132242,0.04647,93612.0,93611.0,0.04392016]
[1763489132439,0.04647,93612.0,93611.0,0.04492016]
[1763489132843,0.38402,93625.0,93624.0,0.02273]
[1763489133049,0.43053045,93625.0,93624.0,0.04376]
[1763489133547,0.06973045,93625.0,93624.0,0.04376]
[1763489134647,0.06973045,93625.0,93624.0,0.1506378]
[1763489135838,0.04647,93625.0,93624.0,0.1506378]
[1763489136348,0.06973426,93625.0,93624.0,0.1506378]
[1763489136540,0.06973426,93625.0,93624.0,0.04376]
[1763489137744,0.17661086,93625.0,93624.0,0.04376]
[1763489138344,0.1533512,93621.0,93620.0,0.00219803]
[1763489138546,0.1766288,93621.0,93620.0,0.04595803]
[1763489138850,0.1766288,93621.0,93611.0,0.02289016]
[1763489138851,0.1533615,93612.0,93611.0,0.02289016]
[1763489139346,0.04647,93612.0,93611.0,0.04392016]
[1763489139649,0.02322,93612.0,93611.0,0.40472016]
[1763489140038,0.04647,93612.0,93611.0,0.40472016]
[1763489140652,0.04647,93612.0,93611.0,0.00016016]
[1763489141236,0.04647,93612.0,93611.0,0.02289016]
[1763489141441,0.04647,93612.0,93611.0,0.02389016]
[1763489141644,0.04647,93612.0,93611.0,0.04492016]
[1763489141843,0.04647,93612.0,93611.0,0.02389016]
[1763489142555,0.04647,93612.0,93611.0,0.04492016]
[1763489143147,0.40727,93625.0,93624.0,0.04376]
[1763489143346,0.06972363,93625.0,93624.0,0.04376]
[1763489144257,0.02325363,93625.0,93624.0,0.04376]
[1763489144454,0.25808,93627.0,93626.0,0.04376]
[1763489144760,0.25808,93627.0,93625.0,0.1068766]
[1763489144761,0.0001595,93630.0,93629.0,0.04376]
[1763489145056,0.04647,93650.0,93649.0,0.04376]
[1763489145250,0.06972197,93650.0,93649.0,0.04376]
[1763489146456,0.07072197,93650.0,93649.0,0.04376]
[1763489146855,0.07072197,93650.0,93649.0,0.02273]
[1763489147559,0.07172197,93650.0,93649.0,0.02273]
[1763489148258,0.07172197,93650.0,93649.0,0.04376]
[1763489148654,0.07172197,93650.0,93649.0,0.1506092]
[1763489149158,0.17857007,93650.0,93649.0,0.04376]
[1763489149356,0.04647,93641.0,93640.0,0.1634195]
[1763489149555,0.04647,93641.0,93640.0,0.16561753]
[1763489150554,0.02322,93641.0,93640.0,0.16561753]
[1763489150756,0.04747,93650.0,93649.0,0.04376]
[1763489151057,0.06951582,93650.0,93649.0,0.04376]
[1763489151256,0.04647,93650.0,93649.0,0.04376]
[1763489152059,0.04847,93650.0,93649.0,0.04376]
[1763489152261,0.04847,93650.0,93649.0,0.1506092]
[1763489152762,0.04847,93650.0,93649.0,0.04376]
[1763489152963,0.04847,93650.0,93649.0,0.02273]
[1763489153462,0.1533272,93642.0,93641.0,0.04376]
[1763489153765,0.04647,93638.0,93637.0,0.40456]
[1763489154552,0.24122483,93650.0,93637.0,0.40456]
[1763489154553,0.04647,93647.0,93646.0,0.04376]
[1763489154975,0.40727,93651.0,93650.0,0.15280613]
[1763489155362,0.40727,93651.0,93650.0,0.10904613]
[1763489155666,0.40727,93651.0,93650.0,0.15280613]
[1763489156167,0.40827,93651.0,93650.0,0.04595803]
[1763489156864,0.04647,93638.0,93637.0,0.5114229]
[1763489157163,0.02322,93638.0,93637.0,0.5114229]
[1763489157462,0.0441,93642.0,93641.0,0.1518584]
[1763489158468,0.02129,93642.0,93641.0,0.1518584]
[1763489158872,0.02329,93642.0,93641.0,0.1518584]
[1763489159161,0.002,93642.0,93641.0,0.1518584]
[1763489160371,0.0461,93642.0,93641.0,0.045]
[1763489160566,0.1509584,93641.0,93640.0,0.00219803]
[1763489160869,0.1509584,93641.0,93640.0,0.04626803]
[1763489161658,0.0451,93641.0,93640.0,0.40706803]
[1763489162066,0.001,93641.0,93640.0,0.40706803]
[1763489162759,0.002,93641.0,93640.0,0.40706803]
[1763489164255,0.0461,93641.0,93640.0,0.40706803]
[1763489165466,0.002,93641.0,93640.0,0.40706803]
[1763489167063,0.0461,93641.0,93640.0,0.40706803]
[1763489167369,0.0461,93641.0,93640.0,0.04626803]
[1763489169078,0.002,93641.0,93640.0,0.40706803]
[1763489170173,0.002,93641.0,93640.0,0.46474111]
[1763489170565,0.002,93641.0,93640.0,0.40706803]
[1763489172273,0.0461,93641.0,93640.0,0.40706803]
[1763489172474,0.02329,93641.0,93640.0,0.46463581]
[1763489172863,0.002,93641.0,93640.0,0.46463581]
[1763489173274,0.002,93641.0,93640.0,0.40706803]
[1763489173576,0.0461,93641.0,93640.0,0.40706803]
[1763489173776,0.0461,93641.0,93640.0,0.51392753]
[1763489173971,0.0461,93641.0,93640.0,0.44241583]
[1763489174274,0.0461,93641.0,93640.0,0.40706803]
[1763489175677,0.0461,93641.0,93640.0,0.38479803]
[1763489175877,0.0691811,93641.0,93640.0,0.00219803]
[1763489176873,0.0441,93635.0,93634.0,0.0218]
[1763489177068,0.1740463,93635.0,93634.0,0.0218]
[1763489177274,0.0441,93635.0,93634.0,0.0218]
[1763489177464,0.06717898,93635.0,93634.0,0.0218]
[1763489177671,0.06717898,93635.0,93634.0,0.04407]
[1763489177979,0.02307898,93635.0,93634.0,0.04407]
[1763489178179,0.3031,93641.0,93640.0,0.04407]
[1763489178481,0.43303713,93641.0,93640.0,0.00219803]
[1763489178880,0.43203713,93641.0,93640.0,0.00219803]
[1763489179477,0.43403713,93641.0,93640.0,0.00219803]
[1763489179783,0.0441,93634.0,93633.0,0.04407]
[1763489179980,0.17404603,93634.0,93633.0,0.04407]
[1763489180373,0.17404603,93634.0,93631.0,0.07965088]
[1763489180374,0.0441,93632.0,93631.0,0.07965088]
[1763489180669,0.06717873,93632.0,93631.0,0.04503016]
[1763489181579,0.02307873,93632.0,93631.0,0.04503016]
[1763489181768,0.3608,93657.0,93631.0,0.04503016]
[1763489181769,0.04421,93652.0,93651.0,0.151677]
[1763489181965,0.06727725,93652.0,93651.0,0.151677]
[1763489182583,0.06727725,93652.0,93651.0,0.04483]
[1763489182786,0.04421,93645.0,93644.0,0.1286141]
[1763489182979,0.06727725,93645.0,93644.0,0.1286141]
[1763489183177,0.06727725,93645.0,93640.0,0.00219803]
[1763489183178,0.04421,93641.0,93640.0,0.00219803]
[1763489183482,0.06727725,93641.0,93640.0,0.00219803]
[1763489184079,0.1510752,93635.0,93634.0,0.1286257]
[1763489184380,0.02306725,93635.0,93634.0,0.1516957]
[1763489184883,0.06727725,93635.0,93634.0,0.1516957]
[1763489185485,0.02306725,93635.0,93634.0,0.1516957]
[1763489185877,0.04421,93642.0,93641.0,0.1516884]
[1763489186077,0.06726798,93642.0,93641.0,0.1516884]
[1763489186277,0.04421,93642.0,93641.0,0.1516884]
[1763489186584,0.25804,93644.0,93643.0,0.04483]
[1763489186780,0.02305661,93644.0,93643.0,0.04483]
[1763489187383,0.04561661,93644.0,93643.0,0.04483]
[1763489187990,0.04561634,93644.0,93643.0,0.04483]
[1763489188183,0.04583,93644.0,93643.0,0.04483]
[1763489188486,0.04783,93644.0,93643.0,0.04483]
[1763489190190,0.04674,93644.0,93643.0,0.04483]